fUST/lending_fUST_20260214
["ID","MTS","AMOUNT","RATE_DAILY","PERIOD"]
[405324023,1770998468384,500.0,0.00013273,2]
[405324024,1770998468436,1010.43382537,0.00013821,2]
[405324025,1770998474879,500.0,0.00013273,2]
[405324026,1770998482225,500.0,0.00013273,2]
[405324031,1770998511259,5071.01746256,0.0002,2]
[405324032,1770998519764,-168.0,0.00023869,2]
[405324033,1770998519795,-500.0,0.00023869,2]
[405324034,1770998519893,-11.39476919,0.00023869,2]
[405324035,1770998528152,150.33,0.00016438,5]
[405324036,1770998532111,552.81993841,0.00013273,2]
[405324044,1770998769721,291.83617666,0.00013699,2]
[405324045,1770998772928,500.0,0.00013699,2]
[405324046,1770998772984,1000.0,0.00014247,2]
[405324047,1770998773045,1500.0,0.00014795,2]
[405324048,1770998773091,1035.32694169,0.00015342,2]
[405324067,1770998840102,-488.60523081,0.00023869,2]
[405324068,1770998840124,-16.06012801,0.00023871,2]
[405324069,1770999028248,11063.33832735,0.000235,2]
[405324128,1770999031760,-203.61328784,0.00023875,2]
[405324130,1770999031769,-1000.0,0.00023878,30]
[405324132,1770999031778,-153.28108353,0.0002391,5]
[405324133,1770999031787,-1860.87477819,0.00024066,3]
[405324135,1770999031796,-168.0,0.00024173,2]
[405324137,1770999031805,-168.0,0.00024359,2]
[405324138,1770999031814,-3792.28525456,0.00024373,3]
[405324139,1770999031824,-168.0,0.00024548,2]
[405324140,1770999031832,-240.87322562,0.00024661,2]
[405324141,1770999031841,-250.0,0.00024662,2]
[405324143,1770999031851,-250.0,0.00024662,2]
[405324144,1770999031860,-250.0,0.00024662,2]
[405324146,1770999031869,-209.40437684,0.00024662,2]
[405324147,1770999031878,-217.15233878,0.00024662,2]
[405324148,1770999031887,-165.01364811,0.00024662,2]
[405324157,1770999038267,-84.98635189,0.00024662,2]
[405324159,1770999038277,-242.83894578,0.00024662,2]
[405324161,1770999038288,-501.30030461,0.00024662,2]
[405324163,1770999038297,-225.18697532,0.00024662,2]
[405324165,1770999038306,-250.0,0.00024662,2]
[405324167,1770999038316,-589.43897133,0.00024662,2]
[405324169,1770999038327,-233.51889341,0.00024662,2]
[405324171,1770999038337,-250.0,0.00024662,2]
[405324173,1770999038346,-242.15909246,0.00024662,2]
[405324175,1770999038357,-250.0,0.00024662,2]
[405324177,1770999038366,-216.29735733,0.00024662,2]
[405324179,1770999038378,-34.82162155,0.00024662,2]
[405324181,1770999038387,-194.43547789,0.00024662,2]
[405324183,1770999038397,-260.4103811,0.00024662,2]
[405324185,1770999038406,-270.0455652,0.00024662,2]
[405324187,1770999038415,-280.03725112,0.00024662,2]
[405324189,1770999038425,-290.39862941,0.00024662,2]
[405324192,1770999038435,-301.1433787,0.00024662,2]
[405324194,1770999038445,-250.0,0.00024662,2]
[405324197,1770999038454,-250.0,0.00024662,2]
[405324199,1770999038464,-250.0,0.00024662,2]
[405324201,1770999038473,-250.0,0.00024662,2]
[405324203,1770999038482,-250.0,0.00024662,2]
[405324205,1770999038491,-250.0,0.00024662,2]
[405324206,1770999038500,-250.0,0.00024662,2]
[405324208,1770999038509,-274.71806547,0.00024662,2]
[405324211,1770999038519,-21172.11922509,0.00024662,2]
[405324212,1770999038528,-168.0,0.00024677,2]
[405324214,1770999038537,-168.0,0.00024691,2]
[405324216,1770999038547,-168.0,0.0002474,2]
[405324218,1770999038556,-5723.69573093,0.00024859,3]
[405324220,1770999038565,-742.81808302,0.00024859,3]
[405324222,1770999038574,-300.0,0.00025109,10]
[405324224,1770999038584,-300.0,0.00025109,10]
[405324226,1770999038593,-300.0,0.00025109,10]
[405324228,1770999038604,-300.0,0.00025109,10]
[405324230,1770999038613,-300.0,0.00025109,10]
[405324232,1770999038622,-300.0,0.00025109,10]
[405324234,1770999038632,-300.0,0.00025109,10]
[405324236,1770999038642,-300.0,0.00025109,10]
[405324238,1770999038651,-300.0,0.00025109,10]
[405324254,1770999038792,-300.0,0.00025109,10]
[405324256,1770999038802,-300.0,0.00025109,10]
[405324258,1770999038812,-300.0,0.00025109,10]
[405324260,1770999038822,-300.0,0.00025109,10]
[405324262,1770999038832,-300.0,0.00025109,10]
[405324264,1770999038843,-300.0,0.00025109,10]
[405324266,1770999038854,-168.0,0.00025226,2]
[405324268,1770999038866,-158.98072519,0.00025328,9]
[405324270,1770999038877,-7655.1062073,0.00025345,3]
[405324272,1770999038887,-150.0,0.00025379,2]
[405324274,1770999038897,-265.87711598,0.00025379,2]
[405324276,1770999038906,-189.89601547,0.00025434,2]
[405324278,1770999038916,-3024.56,0.0002556,2]
[405324280,1770999038926,-313.66006511,0.00025584,2]
[405324282,1770999038936,-564.58811719,0.00025584,2]
[405324284,1770999038946,-198.64332198,0.00025584,2]
[405324286,1770999038955,-1378.0,0.00025584,2]
[405324288,1770999038965,-634.0,0.00025584,2]
[405324290,1770999038976,-2167.0,0.00025584,2]
[405324292,1770999038985,-600.0,0.0002561,10]
[405324294,1770999038994,-168.0,0.00025686,2]
[405324296,1770999039004,-357.55797956,0.0002573,2]
[405324298,1770999039014,-9586.51668367,0.00025831,3]
[405324300,1770999039024,-240.26367965,0.00025875,2]
[405324302,1770999039035,-168.0,0.00025879,2]
[405324304,1770999039046,-168.0,0.00025884,2]
[405324306,1770999039056,-553.80282609,0.00025886,5]
[405324308,1770999039066,-168.0,0.00025897,2]
[405324310,1770999039077,-1003.71220834,0.00025921,2]
[405324312,1770999039088,-168.0,0.00025951,2]
[405324314,1770999039101,-168.0,0.00026014,2]
[405324316,1770999039113,-11517.92716004,0.00026317,3]
[405324318,1770999039123,-424.0,0.00026589,2]
[405324320,1770999039132,-723.0,0.00026589,2]
[405324322,1770999039143,-13216.01835736,0.00026803,3]
[405324324,1770999039154,-742.81808302,0.00026803,3]
[405324326,1770999039164,-1568.30032554,0.00026804,2]
[405324328,1770999039176,-635.65863033,0.00026873,2]
[405324330,1770999039186,-544.68,0.0002698,3]
[405324332,1770999039196,-7815.52,0.0002698,10]
[405324334,1770999039206,-100000.0,0.0002699,2]
[405324336,1770999039215,-154.0,0.00027,7]
[405324338,1770999039224,-190.34370841,0.0002702,2]
[405324340,1770999039234,-272.34,0.0002709,3]
[405324342,1770999039243,-150.352,0.00027123,2]
[405324344,1770999039253,-14214.15171754,0.00027289,3]
[405324346,1770999039262,-252.58314908,0.00027397,5]
[405324348,1770999039272,-296.18252994,0.00027397,5]
[405324350,1770999039282,-439.42,0.00027547,2]
[405324352,1770999039291,-310.0,0.00027599,2]
[405324354,1770999039301,-817.06,0.00027669,3]
[405324356,1770999039310,-1450.91095548,0.00027679,3]
[405324358,1770999039320,-2256.09411631,0.00027688,2]
[405324360,1770999039329,-25635.0977578,0.00027725,2]
[405324362,1770999039338,-15212.28507771,0.00027775,3]
[405324364,1770999039347,-157.327921,0.000278,10]
[405324366,1770999039358,-151.0,0.00027846,7]
[405324368,1770999039368,-151.0,0.00027846,7]
[405324370,1770999039377,-183.084912,0.00027846,7]
[405324372,1770999039387,-83016.80501529,0.00027856,2]
[405324374,1770999039396,-604506.70789243,0.00027856,2]
[405324376,1770999039405,-151.0,0.00027856,7]
[405324378,1770999039415,-151.0,0.00027856,7]
[405324380,1770999039424,-151.0,0.00027856,7]
[405324381,1770999039433,-151.0,0.00027856,7]
[405324383,1770999039443,-592.16,0.00027856,2]
[405324385,1770999039452,-592.16,0.00027856,2]
[405324387,1770999039462,-592.16,0.00027856,2]
[405324389,1770999039472,-592.16,0.00027856,2]
[405324391,1770999039481,-592.16,0.00027856,2]
[405324393,1770999039491,-592.16,0.00027856,2]
[405324395,1770999039500,-592.16,0.00027856,2]
[405324397,1770999039510,-592.16,0.00027856,2]
[405324399,1770999039520,-592.16,0.00027856,2]
[405324401,1770999039529,-592.16,0.00027856,2]
[405324403,1770999039539,-1041.73,0.00027856,2]
[405324405,1770999039548,-276.91407147,0.00027875,2]
[405324407,1770999039558,-296.98,0.000279,7]
[405324409,1770999039567,-151.0,0.000279,14]
[405324411,1770999039577,-500.0,0.00027907,8]
[405324413,1770999039586,-500.0,0.00027907,8]
[405324415,1770999039596,-569.0,0.00027907,8]
[405324417,1770999039606,-500.0,0.00027913,8]
[405324419,1770999039615,-500.0,0.00027913,8]
[405324421,1770999039625,-500.0,0.00027913,8]
[405324423,1770999039634,-500.0,0.00027913,8]
[405324425,1770999039644,-500.0,0.00027913,8]
[405324427,1770999039653,-500.0,0.00027913,8]
[405324429,1770999039662,-544.0,0.00027913,8]
[405324431,1770999039671,-300.0,0.0002792,8]
[405324433,1770999039681,-250.0,0.00027937,8]
[405324435,1770999039690,-232.0,0.00027937,8]
[405324437,1770999039700,-250.0,0.00027976,8]
[405324439,1770999039709,-250.0,0.00027976,8]
[405324441,1770999039719,-216.0,0.00027976,8]
[405324443,1770999039728,-151.0,0.00028,10]
[405324445,1770999039737,-171.81203775,0.00028,5]
[405324447,1770999039747,-992.22339328,0.00028014,2]
[405324449,1770999039756,-1505.759081,0.0002804,2]
[405324451,1770999039766,-250.0,0.00028062,8]
[405324453,1770999039775,-250.0,0.00028062,8]
[405324455,1770999039784,-500.0,0.000281,7]
[405324457,1770999039793,-2345.39602956,0.0002813,2]
[405324458,1770999039802,-720.0,0.00028171,30]
[405324460,1770999039811,-168.0,0.00028178,2]
[405324461,1770999039821,-766.11,0.000282,14]
[405324462,1770999039831,-1325.75,0.000282,2]
[405324463,1770999039842,-226.0,0.00028202,8]
[405324464,1770999039852,-213.0,0.00028249,2]
[405324465,1770999039862,-16210.41843788,0.00028261,3]
[405324466,1770999039872,-742.81808302,0.00028261,3]
[405324467,1770999039882,-500.0,0.00028266,8]
[405324468,1770999039892,-641.0,0.00028266,8]
[405324469,1770999039901,-456.0,0.00028291,8]
[405324470,1770999039910,-1634.04,0.0002835,3]
[405324471,1770999039919,-1089.36,0.0002835,3]
[405324472,1770999039928,-501.0,0.00028411,10]
[405324473,1770999039938,-544.68,0.0002846,3]
[405324474,1770999039948,-500.0,0.00028581,8]
[405324475,1770999039957,-441.0,0.00028581,8]
[405324476,1770999039967,-262.698,0.00028584,2]
[405324477,1770999039976,-612.928,0.00028584,2]
[405324478,1770999039986,-2167.0,0.00028584,2]
[405324479,1770999039995,-500.0,0.00028586,8]
[405324480,1770999040005,-500.0,0.00028586,8]
[405324481,1770999040015,-500.0,0.00028586,8]
[405324482,1770999040025,-626.0,0.00028586,8]
[405324483,1770999040034,-180.0,0.00028591,8]
[405324484,1770999040044,-289.0,0.00028602,8]
[405324485,1770999040053,-250.0,0.0002863,8]
[405324486,1770999040063,-180.0,0.0002863,8]
[405324487,1770999040072,-151.0,0.00028668,7]
[405324488,1770999040081,-151.0,0.00028668,7]
[405324489,1770999040090,-1080.0,0.00028691,10]
[405324490,1770999040100,-300.0,0.00028692,8]
[405324491,1770999040113,-17208.55179805,0.00028746,3]
[405324492,1770999040123,-526.79,0.00028767,2]
[405324493,1770999040132,-526.79,0.00028767,2]
[405324494,1770999040142,-526.79,0.00028767,2]
[405324495,1770999040152,-526.79,0.00028767,2]
[405324496,1770999040162,-526.79,0.00028767,2]
[405324497,1770999040172,-526.79,0.00028767,2]
[405324498,1770999040182,-526.79,0.00028767,2]
[405324499,1770999040191,-526.79,0.00028767,2]
[405324500,1770999040201,-526.79,0.00028767,2]
[405324501,1770999040211,-526.79,0.00028767,2]
[405324502,1770999040220,-526.79,0.00028767,2]
[405324503,1770999040230,-526.79,0.00028767,2]
[405324504,1770999040239,-526.79,0.00028767,2]
[405324505,1770999040249,-526.79,0.00028767,2]
[405324506,1770999040259,-526.79,0.00028767,2]
[405324507,1770999040268,-526.79,0.00028767,2]
[405324508,1770999040277,-526.79,0.00028767,2]
[405324509,1770999040286,-526.79,0.00028767,2]
[405324510,1770999040296,-526.79,0.00028767,2]
[405324511,1770999040305,-526.79,0.00028767,2]
[405324512,1770999040316,-526.79,0.00028767,2]
[405324513,1770999040326,-526.79,0.00028767,2]
[405324514,1770999040335,-526.79,0.00028767,2]
[405324515,1770999040345,-526.89894734,0.00028767,2]
[405324516,1770999040356,-154.0,0.00028767,14]
[405324517,1770999040366,-151.0,0.00029024,8]
[405324519,1770999040375,-500.0,0.00029066,8]
[405324520,1770999040385,-260.0,0.00029066,8]
[405324521,1770999040394,-304.0,0.00029082,8]
[405324522,1770999040404,-500.0,0.000291,7]
[405324523,1770999040413,-171.0,0.00029117,2]
[405324524,1770999040423,-1505.759081,0.00029128,2]
[405324525,1770999040433,-1705.895458,0.0002922,5]
[405324527,1770999040443,-18206.68515823,0.00029232,3]
[405324528,1770999040452,-1000.0,0.0002924,5]
[405324529,1770999040461,-627.0,0.00029255,8]
[405324530,1770999040470,-500.0,0.00029258,8]
[405324531,1770999040480,-500.0,0.00029258,8]
[405324532,1770999040490,-417.0,0.00029258,8]
[405324533,1770999040500,-1000.0,0.0002926,5]
[405324534,1770999040509,-192.0,0.00029268,8]
[405324535,1770999040520,-1000.0,0.0002928,5]
[405324536,1770999040529,-1226.796873,0.0002928,5]
[405324537,1770999040540,-286.0,0.00029285,8]
[405324538,1770999040552,-1000.0,0.000293,5]
[405324539,1770999040561,-1000.0,0.000293,5]
[405324540,1770999040571,-200.0,0.00029322,8]
[405324541,1770999040581,-213.0,0.00029397,2]
[405324542,1770999040591,-424.0,0.00029589,2]
[405324543,1770999040600,-342.712,0.00029589,2]
[405324544,1770999040613,-9987.89994203,0.000297,2]
[405324545,1770999040622,-296.98,0.000297,7]
[405324546,1770999040631,-9184.28817735,0.000297,2]
[405324547,1770999040640,-111191.95280741,0.000297,2]
[405325057,1770999045803,-6512.93,0.0002969,10]
[405325059,1770999045813,-118.58573068,0.000297,2]
[405325064,1770999045850,-333.33333333,0.000297,2]
[405325236,1770999047492,-467.15272141,0.000297,2]
[405325892,1770999094655,383.11224811,0.00013273,2]
[405325893,1770999107370,317.41971862,0.00023329,2]
[405325895,1770999278775,200.0,0.0003,120]
[405325896,1770999295833,200.0,0.0003,120]
[405325897,1770999310071,300.0,0.0003,120]
[405325901,1770999724922,500.0,0.00013273,2]
[405325902,1770999757786,2100.0,0.000235,2]
[405325995,1770999992104,-470.76221784,0.00025,10]
[405325996,1771000042297,-300.0,0.00024999,2]
[405325997,1771000042318,-300.0,0.00024999,2]
[405325998,1771000042338,-155.0,0.00024999,2]
[405325999,1771000042358,-49.46764047,0.00025,10]
[405326042,1771000231866,-300.0,0.00024999,2]
[405326043,1771000231876,-300.0,0.00024999,2]
[405326044,1771000231885,-411.0,0.00024999,2]
[405326045,1771000231895,-230.38948878,0.00024999,2]
[405326046,1771000231904,-491.81196411,0.00025,10]
[405326047,1771000231915,-7638.97469353,0.00025,10]
[405326050,1771000238562,-2195.98348405,0.00025,10]
[405326051,1771000238572,-199.81746706,0.0002523,2]
[405326052,1771000238582,-1191.88747581,0.00025407,3]
[405326053,1771000238592,-13452.78539683,0.00025499,2]
[405326054,1771000238601,-300.0,0.00025499,10]
[405326056,1771000238611,-300.0,0.00025499,10]
[405326057,1771000238620,-300.0,0.00025499,10]
[405326058,1771000238630,-300.0,0.00025499,10]
[405326059,1771000238639,-300.0,0.00025499,10]
[405326060,1771000238649,-300.0,0.00025499,10]
[405326061,1771000238658,-300.0,0.00025499,10]
[405326062,1771000238668,-300.0,0.00025499,10]
[405326063,1771000238677,-300.0,0.00025499,10]
[405326064,1771000238687,-300.0,0.00025499,10]
[405326065,1771000238698,-300.0,0.00025499,10]
[405326066,1771000238708,-300.0,0.00025499,10]
[405326067,1771000238717,-300.0,0.00025499,10]
[405326068,1771000238727,-300.0,0.00025499,10]
[405326069,1771000238737,-300.0,0.00025499,10]
[405326070,1771000238746,-1964.4132555,0.00025874,2]
[405326071,1771000238757,-2549.45985936,0.00025888,2]
[405326072,1771000238767,-624.33582046,0.00025912,3]
[405326301,1771000245499,-2056.30000005,0.00026273,3]
[405326305,1771000245530,-1906.86292564,0.00026273,3]
[405326306,1771000245541,-93.13707436,0.00026429,30]
[405326314,1771000270207,2000.0,0.000301,120]
[405326315,1771000445018,410.4,0.000235,2]
[405326325,1771001244133,-159.3,0.00025193,2]
[405326326,1771001245082,-586.7,0.00025193,2]
[405326327,1771001245103,-300.0,0.00025193,2]
[405326328,1771001245124,-310.05381739,0.00025193,2]
[405326329,1771001246070,-189.94618261,0.00025193,2]
[405326330,1771001246091,-173.11968936,0.00025193,2]
[405326331,1771001246112,-362.92731647,0.00025193,2]
[405326332,1771001251986,260.0,0.000301,120]
[405326333,1771001302437,260.0,0.000301,120]
[405326379,1771001432021,-195.82111772,0.00025194,2]
[405326381,1771001432030,-8969.677974,0.00025194,2]
[405326383,1771001432040,-300.0,0.00025393,2]
[405326384,1771001432049,-1478.46885218,0.00025394,3]
[405326386,1771001432059,-500.0,0.00025498,2]
[405326388,1771001432068,-949.0320561,0.00025657,3]
[405326390,1771001432080,-2029.1483421,0.00025657,3]
[405326391,1771001432090,-23.53276968,0.00026,2]
[405326392,1771001432101,-673.41,0.00026,2]
[405326394,1771001432113,-363.06661544,0.00026,2]
[405326395,1771001432122,-190.46837474,0.00026135,3]
[405326441,1771001438371,-4287.42356948,0.00026135,3]
[405326443,1771001438381,-500.0,0.00026272,2]
[405326445,1771001438391,-1123.97117455,0.00026383,2]
[405326447,1771001438402,-1043.02882545,0.00026383,2]
[405326449,1771001438411,-135.24379421,0.00026614,3]
[405326451,1771001438422,-5379.4852589,0.00026614,3]
[405326495,1771001445108,-225.005,0.00026383,2]
[405326497,1771001445117,-74.995,0.00026383,2]
[405326524,1771001445966,-128.655,0.00026383,2]
[405326526,1771001445976,-462.87443713,0.00026614,3]
[405326527,1771001445987,-742.81808302,0.00026614,3]
[405326528,1771001445996,-300.0,0.00026874,30]
[405326529,1771001446006,-172.9446312,0.00026874,30]
[405326535,1771001446135,-127.0553688,0.00026874,30]
[405326537,1771001446144,-300.0,0.00026874,30]
[405326538,1771001446154,-42.55651375,0.00026874,30]
[405326542,1771001526322,164.66982187,0.00013273,2]
[405326548,1771001801296,184660.0,0.000235,2]
[405326549,1771001824421,372.79182695,0.00013273,2]
[405326550,1771001864240,428.40030386,0.000189,2]
[405326555,1771002009301,500.0,0.00013699,2]
[405326556,1771002009350,1000.0,0.00014247,2]
[405326557,1771002073224,272.1243143,0.00013699,2]
[405326558,1771002080787,300.0,0.00013673,2]
[405326559,1771002080812,600.0,0.00014221,2]
[405326563,1771002376000,5000.0,0.000235,2]
[405326564,1771002397340,3872.17645018,0.000235,2]
[405326572,1771002469161,5000.0,0.000235,2]
[405326573,1771002477195,5000.0,0.000235,2]
[405326574,1771002490869,500.0,0.00013699,2]
[405326575,1771002490929,1000.0,0.00014247,2]
[405326576,1771002499967,1236.28579925,0.000235,2]
[405326577,1771002501702,7751.2575444,0.00023161,2]
[405326578,1771002545212,325.60666149,0.00013273,2]
[405326579,1771002550673,300.0,0.00013673,2]
[405326599,1771002632421,-200.23438563,0.00023719,2]
[405326600,1771002632430,-793.0,0.00023719,2]
[405326601,1771002632440,-3193.19544846,0.00023819,2]
[405326643,1771002638465,-1806.80455154,0.00023819,2]
[405326646,1771002638475,-235.23827922,0.00023889,2]
[405326649,1771002638485,-1607.44282234,0.0002398,3]
[405326651,1771002638494,-500.0,0.00024007,2]
[405326653,1771002638503,-500.0,0.00024007,2]
[405326655,1771002638512,-500.0,0.00024007,2]
[405326658,1771002638522,-500.0,0.00024007,2]
[405326660,1771002638531,-500.0,0.00024007,2]
[405326662,1771002638540,-500.0,0.00024007,2]
[405326664,1771002638551,-500.0,0.00024007,2]
[405326666,1771002638561,-500.0,0.00024007,2]
[405326668,1771002638570,-500.0,0.00024007,2]
[405326670,1771002638579,-500.0,0.00024007,2]
[405326672,1771002638589,-500.0,0.00024007,2]
[405326674,1771002638598,-500.0,0.00024007,2]
[405326676,1771002638608,-500.0,0.00024007,2]
[405326678,1771002638617,-500.0,0.00024007,2]
[405326680,1771002638629,-500.0,0.00024007,2]
[405326682,1771002638642,-282.69359739,0.00024007,2]
[405326685,1771002638656,-500.0,0.00024007,2]
[405326687,1771002638668,-500.0,0.00024007,2]
[405326689,1771002638680,-500.0,0.00024007,2]
[405326691,1771002638692,-500.0,0.00024007,2]
[405326693,1771002638703,-500.0,0.00024007,2]
[405326696,1771002638715,-500.0,0.00024007,2]
[405326698,1771002638729,-500.0,0.00024007,2]
[405326700,1771002638741,-500.0,0.00024007,2]
[405326702,1771002638752,-500.0,0.00024007,2]
[405326705,1771002638764,-500.0,0.00024007,2]
[405326707,1771002638779,-500.0,0.00024007,2]
[405326709,1771002638792,-500.0,0.00024007,2]
[405326711,1771002638804,-500.0,0.00024007,2]
[405326714,1771002638816,-500.0,0.00024007,2]
[405326716,1771002638828,-500.0,0.00024007,2]
[405326718,1771002638841,-500.0,0.00024007,2]
[405326720,1771002638854,-500.0,0.00024007,2]
[405326723,1771002638866,-500.0,0.00024007,2]
[405326725,1771002638878,-500.0,0.00024007,2]
[405326727,1771002638889,-500.0,0.00024007,2]
[405326729,1771002638901,-500.0,0.00024007,2]
[405326731,1771002638914,-500.0,0.00024007,2]
[405326734,1771002638927,-500.0,0.00024007,2]
[405326736,1771002638939,-500.0,0.00024007,2]
[405326738,1771002638951,-500.0,0.00024007,2]
[405326740,1771002638963,-500.0,0.00024007,2]
[405326743,1771002638975,-500.0,0.00024007,2]
[405326745,1771002638988,-500.0,0.00024007,2]
[405326747,1771002638999,-500.0,0.00024007,2]
[405326749,1771002639011,-500.0,0.00024007,2]
[405326752,1771002639024,-233.01697801,0.00024007,2]
[405326754,1771002639036,-500.0,0.00024007,2]
[405326756,1771002639047,-500.0,0.00024007,2]
[405326758,1771002639058,-500.0,0.00024007,2]
[405326760,1771002639069,-500.0,0.00024007,2]
[405326762,1771002639081,-500.0,0.00024007,2]
[405326764,1771002639092,-500.0,0.00024007,2]
[405326767,1771002639106,-500.0,0.00024007,2]
[405326769,1771002639118,-500.0,0.00024007,2]
[405326771,1771002639130,-500.0,0.00024007,2]
[405326773,1771002639142,-500.0,0.00024007,2]
[405326776,1771002639155,-500.0,0.00024007,2]
[405326778,1771002639166,-500.0,0.00024007,2]
[405326780,1771002639178,-314.45735294,0.00024007,2]
[405326782,1771002639193,-500.0,0.00024007,2]
[405326784,1771002639204,-500.0,0.00024007,2]
[405326787,1771002639216,-500.0,0.00024007,2]
[405326789,1771002639229,-500.0,0.00024007,2]
[405326791,1771002639240,-500.0,0.00024007,2]
[405326793,1771002639250,-500.0,0.00024007,2]
[405326795,1771002639262,-500.0,0.00024007,2]
[405326797,1771002639272,-600.0,0.00024007,2]
[405326799,1771002639282,-500.0,0.00024007,2]
[405326801,1771002639292,-500.0,0.00024007,2]
[405326804,1771002639303,-500.0,0.00024007,2]
[405326806,1771002639314,-500.0,0.00024007,2]
[405326808,1771002639326,-500.0,0.00024007,2]
[405326811,1771002639339,-500.0,0.00024007,2]
[405326813,1771002639350,-500.0,0.00024007,2]
[405326815,1771002639361,-500.0,0.00024007,2]
[405326817,1771002639371,-500.0,0.00024007,2]
[405326819,1771002639380,-500.0,0.00024007,2]
[405326821,1771002639391,-500.0,0.00024007,2]
[405326823,1771002639403,-500.0,0.00024007,2]
[405326825,1771002639413,-500.0,0.00024007,2]
[405326828,1771002639425,-500.0,0.00024007,2]
[405326830,1771002639436,-500.0,0.00024007,2]
[405326832,1771002639445,-500.0,0.00024007,2]
[405326834,1771002639456,-500.0,0.00024007,2]
[405326836,1771002639466,-542.523967,0.00024007,2]
[405326838,1771002639476,-500.0,0.00024007,2]
[405326840,1771002639486,-500.0,0.00024007,2]
[405326843,1771002639496,-500.0,0.00024007,2]
[405326845,1771002639507,-500.0,0.00024007,2]
[405326847,1771002639517,-500.0,0.00024007,2]
[405326849,1771002639528,-500.0,0.00024007,2]
[405326851,1771002639538,-500.0,0.00024007,2]
[405326853,1771002639548,-500.0,0.00024007,2]
[405326855,1771002639559,-500.0,0.00024007,2]
[405326858,1771002639569,-500.0,0.00024007,2]
[405326860,1771002639579,-500.0,0.00024007,2]
[405326862,1771002639590,-500.0,0.00024007,2]
[405326864,1771002639600,-500.0,0.00024007,2]
[405326866,1771002639610,-500.0,0.00024007,2]
[405326868,1771002639621,-500.0,0.00024007,2]
[405326870,1771002639632,-500.0,0.00024007,2]
[405326873,1771002639643,-500.0,0.00024007,2]
[405326875,1771002639654,-500.0,0.00024007,2]
[405326877,1771002639664,-500.0,0.00024007,2]
[405326879,1771002639675,-500.0,0.00024007,2]
[405326881,1771002639685,-500.0,0.00024007,2]
[405326883,1771002639696,-500.0,0.00024007,2]
[405326886,1771002639706,-500.0,0.00024007,2]
[405326888,1771002639716,-500.0,0.00024007,2]
[405326890,1771002639727,-500.0,0.00024007,2]
[405326891,1771002639737,-631.62001166,0.00024007,2]
[405326892,1771002639748,-500.0,0.00024007,2]
[405326893,1771002639759,-500.0,0.00024007,2]
[405326894,1771002639769,-500.0,0.00024007,2]
[405326895,1771002639780,-500.0,0.00024007,2]
[405326896,1771002639791,-500.0,0.00024007,2]
[405326897,1771002639802,-500.0,0.00024007,2]
[405326898,1771002639812,-300.0,0.00024008,2]
[405326899,1771002639822,-300.0,0.00024008,2]
[405326900,1771002639833,-279.0,0.00024008,2]
[405326901,1771002639843,-1200.0,0.00024008,2]
[405326902,1771002639854,-2600.6993732,0.00024009,2]
[405326903,1771002639864,-6737.1,0.00024088,10]
[405326904,1771002639874,-5614.25,0.00024088,10]
[405326905,1771002639885,-4678.54,0.00024088,10]